[Event "Titled Tuesday Blitz August 22 Early 2023"]
[White "Gyulamiryan-koryun"]
[Black "Lopez Del Alamo, Antonio"]
[BlackFideId "2227339"]
[WhiteElo "2038"]
[BlackElo "2335"]
[Result "0-1"]
[Round "4"]
[TimeControl "180+1"]
[Date "2023.08.22"]
[WhiteClock "0:00:00"]
[BlackClock "0:00:32"]
[Board "229"]

1. c4 {[%clk 0:03:00]}  Nf6 {[%clk 0:02:59]} 2. Nc3 {[%clk 0:02:59]}  g6 {[%clk 0:03:00]} 3. d4 {[%clk 0:02:58]}  d6 {[%clk 0:03:01]} 4. e4 {[%clk 0:02:58]}  Bg7 {[%clk 0:03:02]} 5. h3 {[%clk 0:02:58]}  O-O {[%clk 0:03:02]} 6. Be3 {[%clk 0:02:58]}  e5 {[%clk 0:03:03]} 7. d5 {[%clk 0:02:57]}  c6 {[%clk 0:03:03]} 8. Nf3 {[%clk 0:02:56]}  cxd5 {[%clk 0:03:04]} 9. cxd5 {[%clk 0:02:55]}  a6 {[%clk 0:03:05]} 10. Be2 {[%clk 0:02:55]}  b5 {[%clk 0:03:04]} 11. a3 {[%clk 0:02:51]}  Nbd7 {[%clk 0:03:03]} 12. O-O {[%clk 0:02:50]}  Nb6 {[%clk 0:03:00]} 13. b3 {[%clk 0:02:45]}  Bd7 {[%clk 0:02:55]} 14. Rc1 {[%clk 0:02:44]}  Qb8 {[%clk 0:02:53]} 15. Bd3 {[%clk 0:02:41]}  Qb7 {[%clk 0:02:52]} 16. Qd2 {[%clk 0:02:39]}  Rfc8 {[%clk 0:02:51]} 17. Rc2 {[%clk 0:02:38]}  Ne8 {[%clk 0:02:42]} 18. Rfc1 {[%clk 0:02:37]}  Nc7 {[%clk 0:02:42]} 19. Na2 {[%clk 0:02:30]}  a5 {[%clk 0:02:38]} 20. Nc3 {[%clk 0:02:11]}  f5 {[%clk 0:02:27]} 21. Ne1 {[%clk 0:01:58]}  f4 {[%clk 0:02:23]} 22. Bxb6 {[%clk 0:01:57]}  Qxb6 {[%clk 0:02:24]} 23. Kh1 {[%clk 0:01:51]}  Na6 {[%clk 0:02:14]} 24. Qe2 {[%clk 0:01:27]}  Rcb8 {[%clk 0:02:08]} 25. a4 {[%clk 0:01:19]}  Nb4 {[%clk 0:01:57]} 26. Rb2 {[%clk 0:01:03]}  bxa4 {[%clk 0:01:27]} 27. bxa4 {[%clk 0:01:01]}  Bf6 {[%clk 0:01:11]} 28. Bb5 {[%clk 0:00:57]}  Bc8 {[%clk 0:01:04]} 29. Nd3 {[%clk 0:00:53]}  Nxd3 {[%clk 0:00:58]} 30. Qxd3 {[%clk 0:00:54]}  Qd4 {[%clk 0:00:58]} 31. Qxd4 {[%clk 0:00:48]}  exd4 {[%clk 0:00:59]} 32. Nd1 {[%clk 0:00:40]}  d3 {[%clk 0:00:41]} 33. Rd2 {[%clk 0:00:36]}  Ba6 {[%clk 0:00:37]} 34. Rb1 {[%clk 0:00:30]}  Bxb5 {[%clk 0:00:36]} 35. axb5 {[%clk 0:00:28]}  a4 {[%clk 0:00:36]} 36. Rxd3 {[%clk 0:00:17]}  a3 {[%clk 0:00:36]} 37. Nc3 {[%clk 0:00:08]}  a2 {[%clk 0:00:35]} 38. Ra1 {[%clk 0:00:06]}  Ra3 {[%clk 0:00:36]} 39. Rxa2 {[%clk 0:00:03]}  Rxc3 {[%clk 0:00:36]} 40. Rxc3 {[%clk 0:00:02]}  Bxc3 {[%clk 0:00:37]} 41. Rc2 {[%clk 0:00:01]}  Bd4 {[%clk 0:00:33]} 42. Rc4 {[%clk 0:00:00]}  Bc5 {[%clk 0:00:32]} 0-1


[Site "https://www.chess.com"]

[Event "Titled Tuesday Blitz August 22 Early 2023"]
[White "Hercegovac, Neven"]
[Black "Piesik, Piotr"]
[WhiteFideId "2839135"]
[BlackFideId "1136194"]
[WhiteElo "2294"]
[BlackElo "2643"]
[Result "0-1"]
[Round "4"]
[TimeControl "180+1"]
[Date "2023.08.22"]
[WhiteClock "0:01:48"]
[BlackClock "0:02:40"]
[Board "231"]

1. d4 {[%clk 0:03:00]}  c5 {[%clk 0:02:59]} 2. d5 {[%clk 0:02:52]}  e5 {[%clk 0:02:59]} 3. e4 {[%clk 0:02:42]}  d6 {[%clk 0:02:58]} 4. Nc3 {[%clk 0:02:40]}  Be7 {[%clk 0:02:58]} 5. Nf3 {[%clk 0:02:39]}  a6 {[%clk 0:02:57]} 6. a4 {[%clk 0:02:38]}  Bg4 {[%clk 0:02:57]} 7. Be2 {[%clk 0:02:27]}  Bxf3 {[%clk 0:02:57]} 8. Bxf3 {[%clk 0:02:27]}  Bg5 {[%clk 0:02:58]} 9. O-O {[%clk 0:02:23]}  Bxc1 {[%clk 0:02:55]} 10. Qxc1 {[%clk 0:02:19]}  Ne7 {[%clk 0:02:56]} 11. Qg5 {[%clk 0:02:14]}  O-O {[%clk 0:02:55]} 12. g3 {[%clk 0:02:11]}  Nd7 {[%clk 0:02:53]} 13. h4 {[%clk 0:02:09]}  h6 {[%clk 0:02:53]} 14. Qe3 {[%clk 0:02:07]}  f5 {[%clk 0:02:52]} 15. exf5 {[%clk 0:02:01]}  Nxf5 {[%clk 0:02:53]} 16. Qe4 {[%clk 0:01:57]}  Nd4 {[%clk 0:02:50]} 17. Bg4 {[%clk 0:01:57]}  Nf6 {[%clk 0:02:49]} 18. Qg6 {[%clk 0:01:51]}  Nxg4 {[%clk 0:02:48]} 19. Qxg4 {[%clk 0:01:51]}  Nxc2 {[%clk 0:02:40]} 20. Rac1 {[%clk 0:01:48]}  Nd4 {[%clk 0:02:40]} 0-1


[Site "https://www.chess.com"]

[Event "Titled Tuesday Blitz August 22 Early 2023"]
[White "EvgenyBurmakin"]
[Black "Aggelis, Nikolaos"]
[BlackFideId "4213220"]
[WhiteElo "2289"]
[BlackElo "2575"]
[Result "0-1"]
[Round "4"]
[TimeControl "180+1"]
[Date "2023.08.22"]
[WhiteClock "0:00:00"]
[BlackClock "0:01:32"]
[Board "233"]

1. e4 {[%clk 0:03:00]}  c6 {[%clk 0:02:57]} 2. Nc3 {[%clk 0:02:59]}  d5 {[%clk 0:02:55]} 3. Nf3 {[%clk 0:03:00]}  dxe4 {[%clk 0:02:54]} 4. Nxe4 {[%clk 0:03:01]}  Bg4 {[%clk 0:02:55]} 5. d4 {[%clk 0:02:59]}  Nd7 {[%clk 0:02:53]} 6. Bc4 {[%clk 0:02:50]}  e6 {[%clk 0:02:53]} 7. h3 {[%clk 0:02:34]}  Bxf3 {[%clk 0:02:53]} 8. Qxf3 {[%clk 0:02:35]}  Ngf6 {[%clk 0:02:53]} 9. Bd2 {[%clk 0:02:20]}  Nxe4 {[%clk 0:02:52]} 10. Qxe4 {[%clk 0:02:20]}  Nf6 {[%clk 0:02:52]} 11. Qe2 {[%clk 0:02:13]}  Qxd4 {[%clk 0:02:44]} 12. O-O-O {[%clk 0:02:00]}  Qb6 {[%clk 0:02:39]} 13. Bxe6 {[%clk 0:01:21]}  fxe6 {[%clk 0:02:40]} 14. Qxe6+ {[%clk 0:01:21]}  Be7 {[%clk 0:02:40]} 15. Rhe1 {[%clk 0:01:17]}  Nd5 {[%clk 0:02:20]} 16. Ba5 {[%clk 0:00:34]}  Qxa5 {[%clk 0:02:14]} 17. Rxd5 {[%clk 0:00:34]}  Qxe1+ {[%clk 0:02:13]} 18. Qxe1 {[%clk 0:00:31]}  cxd5 {[%clk 0:02:13]} 19. Qe6 {[%clk 0:00:28]}  Rd8 {[%clk 0:02:09]} 20. c3 {[%clk 0:00:18]}  Rf8 {[%clk 0:02:09]} 21. f3 {[%clk 0:00:18]}  b6 {[%clk 0:01:45]} 22. h4 {[%clk 0:00:17]}  Rd6 {[%clk 0:01:45]} 23. Qe5 {[%clk 0:00:17]}  Kf7 {[%clk 0:01:44]} 24. h5 {[%clk 0:00:14]}  Rfd8 {[%clk 0:01:37]} 25. h6 {[%clk 0:00:13]}  Bf6 {[%clk 0:01:38]} 26. Qf5 {[%clk 0:00:13]}  g6 {[%clk 0:01:37]} 27. Qf4 {[%clk 0:00:13]}  d4 {[%clk 0:01:38]} 28. Kc2 {[%clk 0:00:08]}  dxc3 {[%clk 0:01:36]} 29. bxc3 {[%clk 0:00:09]}  Rc6 {[%clk 0:01:37]} 30. g4 {[%clk 0:00:06]}  Rxc3+ {[%clk 0:01:35]} 31. Kb1 {[%clk 0:00:00]}  Rd1+ {[%clk 0:01:32]} 0-1


[Site "https://www.chess.com"]

[Event "Titled Tuesday Blitz August 22 Early 2023"]
[White "Martins, Bruno Andre Leite"]
[Black "Simonovic, Miroslav"]
[WhiteFideId "1942255"]
[BlackFideId "919152"]
[WhiteElo "2556"]
[BlackElo "2264"]
[Result "1-0"]
[Round "4"]
[TimeControl "180+1"]
[Date "2023.08.22"]
[WhiteClock "0:01:28"]
[BlackClock "0:00:06"]
[Board "235"]

1. e4 {[%clk 0:03:00]}  c5 {[%clk 0:02:58]} 2. Nf3 {[%clk 0:03:01]}  Nc6 {[%clk 0:02:58]} 3. d4 {[%clk 0:03:01]}  cxd4 {[%clk 0:02:59]} 4. Nxd4 {[%clk 0:03:01]}  g6 {[%clk 0:03:00]} 5. Nc3 {[%clk 0:03:01]}  Bg7 {[%clk 0:03:00]} 6. Be3 {[%clk 0:03:01]}  d6 {[%clk 0:02:59]} 7. Bc4 {[%clk 0:02:58]}  Nf6 {[%clk 0:02:59]} 8. f3 {[%clk 0:02:58]}  h5 {[%clk 0:02:59]} 9. Qd2 {[%clk 0:02:57]}  Qa5 {[%clk 0:02:56]} 10. Nb3 {[%clk 0:02:56]}  Qd8 {[%clk 0:02:51]} 11. O-O-O {[%clk 0:02:56]}  Bd7 {[%clk 0:02:50]} 12. Kb1 {[%clk 0:02:51]}  Ne5 {[%clk 0:02:48]} 13. Be2 {[%clk 0:02:51]}  Rc8 {[%clk 0:02:48]} 14. Nd5 {[%clk 0:02:49]}  Nc4 {[%clk 0:02:38]} 15. Bxc4 {[%clk 0:02:48]}  Rxc4 {[%clk 0:02:39]} 16. Nxf6+ {[%clk 0:02:43]}  Bxf6 {[%clk 0:02:39]} 17. Rhe1 {[%clk 0:02:39]}  O-O {[%clk 0:02:22]} 18. h3 {[%clk 0:02:25]}  a5 {[%clk 0:01:59]} 19. Bg5 {[%clk 0:02:20]}  Bxg5 {[%clk 0:01:55]} 20. Qxg5 {[%clk 0:02:19]}  a4 {[%clk 0:01:55]} 21. Nd4 {[%clk 0:02:19]}  Kg7 {[%clk 0:01:40]} 22. Nf5+ {[%clk 0:01:49]}  Bxf5 {[%clk 0:01:39]} 23. exf5 {[%clk 0:01:49]}  Rc5 {[%clk 0:01:38]} 24. g4 {[%clk 0:01:31]}  Rh8 {[%clk 0:00:58]} 25. Rxe7 {[%clk 0:01:29]}  hxg4 {[%clk 0:00:06]} 26. Qxg6+ {[%clk 0:01:28]} 1-0


[Site "https://www.chess.com"]

[Event "Titled Tuesday Blitz August 22 Early 2023"]
[White "Kaminski, Victor"]
[Black "Forgacs, Attila Jr."]
[WhiteFideId "1131630"]
[BlackFideId "773654"]
[WhiteElo "2248"]
[BlackElo "2482"]
[Result "1/2-1/2"]
[Round "4"]
[TimeControl "180+1"]
[Date "2023.08.22"]
[WhiteClock "0:00:04"]
[BlackClock "0:00:09"]
[Board "238"]

1. e4 {[%clk 0:02:52]}  e5 {[%clk 0:02:59]} 2. Nf3 {[%clk 0:02:50]}  Nc6 {[%clk 0:03:00]} 3. Bb5 {[%clk 0:02:49]}  a6 {[%clk 0:03:00]} 4. Ba4 {[%clk 0:02:47]}  Nf6 {[%clk 0:03:00]} 5. O-O {[%clk 0:02:47]}  Be7 {[%clk 0:03:01]} 6. d3 {[%clk 0:02:46]}  b5 {[%clk 0:02:57]} 7. Bb3 {[%clk 0:02:45]}  d6 {[%clk 0:02:58]} 8. Bd2 {[%clk 0:02:36]}  O-O {[%clk 0:02:59]} 9. h3 {[%clk 0:02:35]}  h6 {[%clk 0:02:59]} 10. a4 {[%clk 0:02:33]}  Rb8 {[%clk 0:02:54]} 11. Nc3 {[%clk 0:02:31]}  Re8 {[%clk 0:02:50]} 12. axb5 {[%clk 0:02:25]}  axb5 {[%clk 0:02:49]} 13. Nd5 {[%clk 0:02:24]}  Bf8 {[%clk 0:02:42]} 14. c3 {[%clk 0:02:04]}  Be6 {[%clk 0:02:39]} 15. Nxf6+ {[%clk 0:01:56]}  Qxf6 {[%clk 0:02:39]} 16. Nh2 {[%clk 0:01:51]}  Qg6 {[%clk 0:02:18]} 17. Bxe6 {[%clk 0:01:42]}  Qxe6 {[%clk 0:02:09]} 18. f4 {[%clk 0:01:32]}  exf4 {[%clk 0:02:05]} 19. Bxf4 {[%clk 0:01:27]}  Ne5 {[%clk 0:01:52]} 20. Bxe5 {[%clk 0:01:08]}  dxe5 {[%clk 0:01:49]} 21. Ng4 {[%clk 0:00:58]}  Rbd8 {[%clk 0:01:43]} 22. Qf3 {[%clk 0:00:54]}  Rd7 {[%clk 0:01:37]} 23. Rad1 {[%clk 0:00:42]}  Red8 {[%clk 0:01:36]} 24. Kh1 {[%clk 0:00:37]}  c5 {[%clk 0:01:28]} 25. Qg3 {[%clk 0:00:33]}  Kh8 {[%clk 0:01:12]} 26. Nxe5 {[%clk 0:00:33]}  Bd6 {[%clk 0:01:09]} 27. Rf5 {[%clk 0:00:27]}  Re7 {[%clk 0:00:52]} 28. d4 {[%clk 0:00:24]}  cxd4 {[%clk 0:00:51]} 29. cxd4 {[%clk 0:00:25]}  Bxe5 {[%clk 0:00:46]} 30. Rxe5 {[%clk 0:00:24]}  Qxe5 {[%clk 0:00:45]} 31. dxe5 {[%clk 0:00:24]}  Rxd1+ {[%clk 0:00:46]} 32. Kh2 {[%clk 0:00:25]}  Rd4 {[%clk 0:00:40]} 33. e6 {[%clk 0:00:18]}  Rxe6 {[%clk 0:00:36]} 34. Qb8+ {[%clk 0:00:18]}  Kh7 {[%clk 0:00:36]} 35. Qxb5 {[%clk 0:00:19]}  Rexe4 {[%clk 0:00:34]} 36. Qf5+ {[%clk 0:00:13]}  Kg8 {[%clk 0:00:28]} 37. Qc8+ {[%clk 0:00:13]}  Kh7 {[%clk 0:00:25]} 38. Qf5+ {[%clk 0:00:13]}  Kh8 {[%clk 0:00:23]} 39. Qxf7 {[%clk 0:00:10]}  Rf4 {[%clk 0:00:20]} 40. Qe8+ {[%clk 0:00:08]}  Kh7 {[%clk 0:00:21]} 41. Qe5 {[%clk 0:00:08]}  Rb4 {[%clk 0:00:19]} 42. b3 {[%clk 0:00:06]}  Rf6 {[%clk 0:00:17]} 43. Qc3 {[%clk 0:00:05]}  Rbf4 {[%clk 0:00:14]} 44. Qd3+ {[%clk 0:00:06]}  Kg8 {[%clk 0:00:13]} 45. Qd8+ {[%clk 0:00:06]}  Rf8 {[%clk 0:00:14]} 46. Qd5+ {[%clk 0:00:06]}  Kh8 {[%clk 0:00:14]} 47. Qd6 {[%clk 0:00:05]}  Rf2 {[%clk 0:00:14]} 48. b4 {[%clk 0:00:05]}  R8f6 {[%clk 0:00:14]} 49. Qd8+ {[%clk 0:00:05]}  Kh7 {[%clk 0:00:14]} 50. Qd3+ {[%clk 0:00:05]}  Rg6 {[%clk 0:00:14]} 51. h4 {[%clk 0:00:04]}  Rxg2+ {[%clk 0:00:14]} 52. Kh3 {[%clk 0:00:03]}  Rg1 {[%clk 0:00:14]} 53. Kh2 {[%clk 0:00:02]}  h5 {[%clk 0:00:10]} 54. Qf5 {[%clk 0:00:01]}  Rg4 {[%clk 0:00:06]} 55. Qxh5+ {[%clk 0:00:01]}  Kg8 {[%clk 0:00:07]} 56. Qd5+ {[%clk 0:00:01]}  Kh8 {[%clk 0:00:06]} 57. Qh5+ {[%clk 0:00:01]}  Kg8 {[%clk 0:00:06]} 58. Qd5+ {[%clk 0:00:01]}  Kf8 {[%clk 0:00:07]} 59. Qd8+ {[%clk 0:00:01]}  Kf7 {[%clk 0:00:07]} 60. Qd7+ {[%clk 0:00:02]}  Kf6 {[%clk 0:00:07]} 61. Qd6+ {[%clk 0:00:03]}  Kf5 {[%clk 0:00:08]} 62. Qd5+ {[%clk 0:00:03]}  Kf6 {[%clk 0:00:08]} 63. Qd6+ {[%clk 0:00:03]}  Kf5 {[%clk 0:00:08]} 64. Qd5+ {[%clk 0:00:03]}  Kf4 {[%clk 0:00:08]} 65. Qd4+ {[%clk 0:00:04]}  Kf3 {[%clk 0:00:08]} 66. Qd3+ {[%clk 0:00:04]}  Kf2 {[%clk 0:00:09]} 67. Qd2+ {[%clk 0:00:03]}  Kf3 {[%clk 0:00:08]} 68. Qd3+ {[%clk 0:00:03]}  Kf4 {[%clk 0:00:08]} 69. Qd4+ {[%clk 0:00:03]}  Kf5 {[%clk 0:00:09]} 70. Qd5+ {[%clk 0:00:04]} 1/2-1/2


[Site "https://www.chess.com"]

[Event "Titled Tuesday Blitz August 22 Early 2023"]
[White "Sarkar, Justin"]
[Black "Cheer_Down"]
[WhiteFideId "2010011"]
[WhiteElo "2234"]
[BlackElo "2394"]
[Result "0-1"]
[Round "4"]
[TimeControl "180+1"]
[Date "2023.08.22"]
[WhiteClock "0:00:00"]
[BlackClock "0:01:10"]
[Board "241"]

1. d4 {[%clk 0:02:52]}  d5 {[%clk 0:02:59]} 2. c4 {[%clk 0:02:51]}  e6 {[%clk 0:02:56]} 3. Nf3 {[%clk 0:02:48]}  Nf6 {[%clk 0:02:47]} 4. Bg5 {[%clk 0:02:47]}  Nbd7 {[%clk 0:02:43]} 5. e3 {[%clk 0:02:44]}  h6 {[%clk 0:02:41]} 6. Bh4 {[%clk 0:02:43]}  Be7 {[%clk 0:02:42]} 7. Nc3 {[%clk 0:02:40]}  O-O {[%clk 0:02:41]} 8. Rc1 {[%clk 0:02:37]}  c5 {[%clk 0:02:26]} 9. cxd5 {[%clk 0:02:28]}  Nxd5 {[%clk 0:02:25]} 10. Nxd5 {[%clk 0:02:26]}  Bxh4 {[%clk 0:02:24]} 11. Nxh4 {[%clk 0:02:16]}  Qxh4 {[%clk 0:02:17]} 12. Nc7 {[%clk 0:02:00]}  Rb8 {[%clk 0:02:16]} 13. dxc5 {[%clk 0:01:58]}  Nxc5 {[%clk 0:02:08]} 14. Rxc5 {[%clk 0:01:56]}  Qb4+ {[%clk 0:02:06]} 15. Rc3 {[%clk 0:01:53]}  Qxb2 {[%clk 0:02:06]} 16. Nb5 {[%clk 0:01:29]}  a6 {[%clk 0:01:56]} 17. Rb3 {[%clk 0:01:22]}  Qxa2 {[%clk 0:01:50]} 18. Nc3 {[%clk 0:01:15]}  Qa5 {[%clk 0:01:49]} 19. Be2 {[%clk 0:01:01]}  Rd8 {[%clk 0:01:44]} 20. Qc1 {[%clk 0:01:00]}  e5 {[%clk 0:01:33]} 21. O-O {[%clk 0:00:56]}  Be6 {[%clk 0:01:33]} 22. Qa3 {[%clk 0:00:49]}  Qc7 {[%clk 0:01:27]} 23. Rbb1 {[%clk 0:00:48]}  b5 {[%clk 0:01:23]} 24. Rfc1 {[%clk 0:00:39]}  Qb6 {[%clk 0:01:20]} 25. Ne4 {[%clk 0:00:29]}  Bf5 {[%clk 0:01:13]} 26. Bf3 {[%clk 0:00:19]}  Qg6 {[%clk 0:01:12]} 27. Qxa6 {[%clk 0:00:02]}  Bxe4 {[%clk 0:01:11]} 28. Bxe4 {[%clk 0:00:02]}  Qxe4 {[%clk 0:01:10]} 29. Rxb5 {[%clk 0:00:02]}  Rxb5 {[%clk 0:01:10]} 30. Qxb5 {[%clk 0:00:02]}  Qd5 {[%clk 0:01:10]} 31. Qxd5 {[%clk 0:00:02]}  Rxd5 {[%clk 0:01:10]} 32. Kf1 {[%clk 0:00:02]}  g6 {[%clk 0:01:10]} 33. Ke2 {[%clk 0:00:00]}  Kg7 {[%clk 0:01:10]} 0-1


[Site "https://www.chess.com"]

[Event "Titled Tuesday Blitz August 22 Early 2023"]
[White "Kiseleva, Arina"]
[Black "Smiechu"]
[WhiteFideId "4164989"]
[WhiteElo "2230"]
[BlackElo "2390"]
[Result "0-1"]
[Round "4"]
[TimeControl "180+1"]
[Date "2023.08.22"]
[WhiteClock "0:01:03"]
[BlackClock "0:02:02"]
[Board "242"]

1. d4 {[%clk 0:03:00]}  Nf6 {[%clk 0:02:59]} 2. Nf3 {[%clk 0:03:01]}  c5 {[%clk 0:02:58]} 3. e3 {[%clk 0:03:01]}  g6 {[%clk 0:02:57]} 4. Bd3 {[%clk 0:03:00]}  Bg7 {[%clk 0:02:58]} 5. O-O {[%clk 0:02:59]}  O-O {[%clk 0:02:55]} 6. a3 {[%clk 0:02:59]}  d6 {[%clk 0:02:50]} 7. b4 {[%clk 0:02:51]}  cxd4 {[%clk 0:02:48]} 8. exd4 {[%clk 0:02:51]}  b6 {[%clk 0:02:47]} 9. Bb2 {[%clk 0:02:50]}  Bb7 {[%clk 0:02:47]} 10. c4 {[%clk 0:02:50]}  d5 {[%clk 0:02:46]} 11. c5 {[%clk 0:02:48]}  Nc6 {[%clk 0:02:45]} 12. b5 {[%clk 0:02:44]}  Na5 {[%clk 0:02:44]} 13. c6 {[%clk 0:02:42]}  Bc8 {[%clk 0:02:44]} 14. Nbd2 {[%clk 0:02:39]}  Ne8 {[%clk 0:02:30]} 15. a4 {[%clk 0:02:35]}  Nd6 {[%clk 0:02:29]} 16. Ne5 {[%clk 0:02:31]}  Bf5 {[%clk 0:02:24]} 17. Bxf5 {[%clk 0:02:21]}  Nxf5 {[%clk 0:02:24]} 18. Rc1 {[%clk 0:02:21]}  Qc7 {[%clk 0:02:22]} 19. Nb3 {[%clk 0:02:15]}  Nxb3 {[%clk 0:02:18]} 20. Qxb3 {[%clk 0:02:15]}  Nxd4 {[%clk 0:02:13]} 21. Bxd4 {[%clk 0:02:09]}  Bxe5 {[%clk 0:02:12]} 22. Qxd5 {[%clk 0:01:54]}  Bxh2+ {[%clk 0:02:11]} 23. Kh1 {[%clk 0:01:54]}  Rad8 {[%clk 0:02:10]} 24. Qe4 {[%clk 0:01:54]}  Qf4 {[%clk 0:02:05]} 25. Qxf4 {[%clk 0:01:26]}  Bxf4 {[%clk 0:02:06]} 26. Rfd1 {[%clk 0:01:18]}  Bxc1 {[%clk 0:02:03]} 27. Rxc1 {[%clk 0:01:13]}  Rxd4 {[%clk 0:02:03]} 28. c7 {[%clk 0:01:03]}  Rc8 {[%clk 0:02:02]} 0-1


[Site "https://www.chess.com"]

[Event "Titled Tuesday Blitz August 22 Early 2023"]
[White "rikchessmx"]
[Black "Andrade Truyol, Geiner Jose"]
[BlackFideId "4431987"]
[WhiteElo "2377"]
[BlackElo "2207"]
[Result "1-0"]
[Round "4"]
[TimeControl "180+1"]
[Date "2023.08.22"]
[WhiteClock "0:01:18"]
[BlackClock "0:00:13"]
[Board "245"]

1. e4 {[%clk 0:03:00]}  e5 {[%clk 0:02:58]} 2. Nf3 {[%clk 0:03:00]}  Nf6 {[%clk 0:02:59]} 3. Nc3 {[%clk 0:02:59]}  Nc6 {[%clk 0:02:58]} 4. Bc4 {[%clk 0:02:59]}  Bb4 {[%clk 0:02:58]} 5. d3 {[%clk 0:02:59]}  O-O {[%clk 0:02:56]} 6. O-O {[%clk 0:02:58]}  Bxc3 {[%clk 0:02:56]} 7. bxc3 {[%clk 0:02:59]}  d6 {[%clk 0:02:56]} 8. h3 {[%clk 0:02:58]}  Be6 {[%clk 0:02:56]} 9. Bb3 {[%clk 0:02:58]}  Bxb3 {[%clk 0:02:54]} 10. axb3 {[%clk 0:02:58]}  Ne7 {[%clk 0:02:54]} 11. Re1 {[%clk 0:02:55]}  Ng6 {[%clk 0:02:50]} 12. Be3 {[%clk 0:02:54]}  h6 {[%clk 0:02:50]} 13. c4 {[%clk 0:02:53]}  b6 {[%clk 0:02:46]} 14. b4 {[%clk 0:02:53]}  Nd7 {[%clk 0:02:40]} 15. Qd2 {[%clk 0:02:45]}  Kh7 {[%clk 0:02:37]} 16. c5 {[%clk 0:02:38]}  bxc5 {[%clk 0:02:33]} 17. bxc5 {[%clk 0:02:38]}  dxc5 {[%clk 0:02:29]} 18. Qa5 {[%clk 0:02:37]}  c4 {[%clk 0:02:14]} 19. dxc4 {[%clk 0:02:36]}  Qe7 {[%clk 0:02:03]} 20. Qxc7 {[%clk 0:02:29]}  Rac8 {[%clk 0:02:02]} 21. Qxa7 {[%clk 0:02:23]}  Rxc4 {[%clk 0:02:02]} 22. Red1 {[%clk 0:02:20]}  Rd8 {[%clk 0:01:58]} 23. Rd2 {[%clk 0:02:10]}  Ngf8 {[%clk 0:01:34]} 24. Rad1 {[%clk 0:02:00]}  Rxe4 {[%clk 0:01:19]} 25. Bb6 {[%clk 0:01:59]}  Rc8 {[%clk 0:00:36]} 26. Rxd7 {[%clk 0:01:53]}  Nxd7 {[%clk 0:00:36]} 27. Rxd7 {[%clk 0:01:54]}  Qe6 {[%clk 0:00:17]} 28. Rxf7 {[%clk 0:01:50]}  Qg6 {[%clk 0:00:18]} 29. Qb7 {[%clk 0:01:38]}  Rcc4 {[%clk 0:00:17]} 30. Be3 {[%clk 0:01:30]}  Rxe3 {[%clk 0:00:15]} 31. fxe3 {[%clk 0:01:28]}  e4 {[%clk 0:00:16]} 32. Ne5 {[%clk 0:01:22]}  Rb4 {[%clk 0:00:14]} 33. Nxg6 {[%clk 0:01:19]}  Rxb7 {[%clk 0:00:13]} 34. Rxb7 {[%clk 0:01:19]}  Kxg6 {[%clk 0:00:13]} 35. Rd7 {[%clk 0:01:18]} 1-0


[Site "https://www.chess.com"]

[Event "Titled Tuesday Blitz August 22 Early 2023"]
[White "Larina, Maria"]
[Black "Rodriguez Fontecha, Marcos"]
[WhiteFideId "24113182"]
[BlackFideId "2256576"]
[WhiteElo "2192"]
[BlackElo "2375"]
[Result "0-1"]
[Round "4"]
[TimeControl "180+1"]
[Date "2023.08.22"]
[WhiteClock "0:01:06"]
[BlackClock "0:00:55"]
[Board "246"]

1. e4 {[%clk 0:02:43]}  e6 {[%clk 0:02:58]} 2. d4 {[%clk 0:02:42]}  d5 {[%clk 0:02:58]} 3. Nc3 {[%clk 0:02:43]}  Bb4 {[%clk 0:02:57]} 4. exd5 {[%clk 0:02:42]}  exd5 {[%clk 0:02:57]} 5. Bd3 {[%clk 0:02:43]}  Ne7 {[%clk 0:02:56]} 6. Qh5 {[%clk 0:02:42]}  Nbc6 {[%clk 0:02:49]} 7. a3 {[%clk 0:02:42]}  Bd6 {[%clk 0:02:48]} 8. Nb5 {[%clk 0:02:36]}  Be6 {[%clk 0:02:48]} 9. Nf3 {[%clk 0:02:25]}  a6 {[%clk 0:02:43]} 10. Nxd6+ {[%clk 0:02:24]}  Qxd6 {[%clk 0:02:44]} 11. Ng5 {[%clk 0:02:23]}  h6 {[%clk 0:02:27]} 12. Be3 {[%clk 0:02:16]}  g6 {[%clk 0:02:07]} 13. Qh4 {[%clk 0:02:15]}  Nf5 {[%clk 0:02:01]} 14. Bxf5 {[%clk 0:02:15]}  Bxf5 {[%clk 0:02:01]} 15. O-O-O {[%clk 0:01:52]}  Qf6 {[%clk 0:01:45]} 16. Rhe1 {[%clk 0:01:42]}  O-O-O {[%clk 0:01:33]} 17. Qg3 {[%clk 0:01:33]}  hxg5 {[%clk 0:01:21]} 18. Bxg5 {[%clk 0:01:34]}  Qd6 {[%clk 0:01:19]} 19. Bxd8 {[%clk 0:01:34]}  Qxg3 {[%clk 0:01:18]} 20. hxg3 {[%clk 0:01:34]}  Kxd8 {[%clk 0:01:18]} 21. f3 {[%clk 0:01:25]}  Rh2 {[%clk 0:01:12]} 22. Re2 {[%clk 0:01:24]}  Be6 {[%clk 0:01:08]} 23. g4 {[%clk 0:01:22]}  Ne7 {[%clk 0:01:05]} 24. b3 {[%clk 0:01:16]}  g5 {[%clk 0:01:03]} 25. Rdd2 {[%clk 0:01:13]}  Ng6 {[%clk 0:01:02]} 26. Re5 {[%clk 0:01:14]}  Nxe5 {[%clk 0:01:02]} 27. dxe5 {[%clk 0:01:14]}  c5 {[%clk 0:00:58]} 28. Kb2 {[%clk 0:01:11]}  Kc7 {[%clk 0:00:58]} 29. c3 {[%clk 0:01:10]}  Rh1 {[%clk 0:00:57]} 30. b4 {[%clk 0:01:06]}  Re1 {[%clk 0:00:55]} 0-1


[Site "https://www.chess.com"]